Cogmind - Beta 16 @@@ ROGUE MODE // 2026.01.06 @ 12:38:10 Player: EuleBlut Result: Destroyed by Y-45 Defender with Beam Rifle Performance ------------- Evolutions (1) 500 Regions Visited (2) 400 Robots Destroyed (43) 215 Value Destroyed (863) 863 Prototype IDs (0) 0 Alien Tech Used (0) 0 Bonus (0) 0 TOTAL SCORE: 1978 Bonus ------- None Cogmind --------- Core Integrity 0/400 Matter 270/300 Energy 248/250 System Corruption 0% Temperature Cool (9) Movement Rolling (110) Ox2 Location -9/Materials Parts ------- > --- POWER (1) -------- Ion Engine > --- PROPULSION (2) --- Wheel Wheel > --- UTILITY (4) ------ High-capacity Storage Unit ECM Suite Light Armor Plating > --- WEAPON (2) ------- Light Assault Rifle Shotgun > --- INVENTORY (20) --- Ion Engine Light Ion Engine Huge Storage Unit Datajack Peak State ------------ > --- POWER ------------ Ion Engine > --- PROPULSION ------- Wheel Wheel > --- UTILITY ---------- High-capacity Storage Unit ECM Suite Light Armor Plating > --- WEAPON ----------- Light Assault Rifle Shotgun > --- INVENTORY -------- Ion Engine Light Ion Engine Huge Storage Unit Datajack [Rating: 9] Favorites ----------- Power Light Ion Engine Engine Light Ion Engine Power Core Light Nuclear Core Propulsion Wheel Leg Aluminum Leg Wheel Wheel Utility High-capacity Storage Unit Device ECM Suite Storage High-capacity Storage Unit Protection Light Armor Plating Weapon Light Assault Rifle Energy Gun Small Laser Energy Cannon Beam Cannon Ballistic Gun Light Assault Rifle Build | -11 -10 -9 ------- Run | Yrd Mat Mat Slots Evolved 2 | . . 2 Power . | . . . Propulsion . | . . . Utility 2 | . . 2 Weapon . | . . . Parts Attached 35 | 6 11 18 Power 6 | 1 2 3 Engine 5 | 1 2 2 Core 1 | . . 1 Reactor . | . . . Propulsion 11 | 2 4 5 Treads . | . . . Leg 2 | . 2 . Wheel 9 | 2 2 5 Hover . | . . . Flight . | . . . Utility 7 | 1 2 4 Device 2 | . 1 1 Storage 3 | 1 1 1 Processor . | . . . Hackware . | . . . Protection 2 | . . 2 Artifact . | . . . Weapon 11 | 2 3 6 Energy Gun 2 | . . 2 Energy Cannon 1 | . . 1 Ballistic Gun 8 | 2 3 3 Ballistic Cannon . | . . . Launcher . | . . . Special Weapon . | . . . Impact Weapon . | . . . Slashing Weapon . | . . . Piercing Weapon . | . . . Special Melee Weapon . | . . . Unidentified Prototypes . | . . . Parts Lost 23 | . 7 16 Power 5 | . 2 3 Propulsion 7 | . 2 5 Utility 2 | . . 2 Weapon 9 | . 3 6 Highest Loss Streak 9 | . 5 9 To Critical Strikes . | . . . Average Backups 4 | . 3 6 Power 2 | . 1 2 Propulsion . | . . . Utility . | . . . Weapon 1 | . 1 1 Tool/Special . | . . . Unused Backups 3 | . . 3 Power 2 | . . 2 Propulsion . | . . . Utility . | . . . Weapon . | . . . Tool/Special 1 | . . 1 Average Slot Usage (%) 75 | . 82 68 Engine 11 | . 13 9 Leg 2 | . 4 . Wheel 18 | . 21 15 Device 5 | . 1 8 Storage 12 | . 14 11 Protection 1 | . . 2 Energy Gun 1 | . . 3 Energy Cannon 2 | . . 5 Ballistic Gun 19 | . 26 12 Peak Build Rating 9 | 6 7 9 Average Rating 6 | 3 5 6 On Entrance 4 | . 6 7 Avg Prop Armor Cover (%) 10 | . 10 . Naked Turns . | . . . Heaviest Build 54 | 13 48 54 Greatest Support 26 | 26 26 26 Greatest Overweight (x) 16 | . 15 16 Average Overweight (x) 1 | . 1 2 Largest Inventory Capacity 25 | 8 20 25 Average Capacity 18 | 6 16 20 Most Carried 9 | 3 8 9 Average Carried 4 | 1 3 6 Final Capacity 20 | 8 20 20 Final Carried 7 | 2 7 4 Class Distribution -------------------- 62% | Mutant 37% | Scavenger-Mutant Dominant Class ---------------- Mutant | -10/Materials Mutant | -9/Materials Resources | -11 -10 -9 ----------- Run | Yrd Mat Mat Matter Collected 951 | 191 469 291 Remotely . | . . . Salvage Created 1463 | . 758 705 Parts 87 | . 46 41 Haulers Intercepted 1 | . . 1 Recyclers Shooed 3 | . 1 2 Parts Field Recycled . | . . . Retrieved Matter . | . . . Parts Self-Destructed . | . . . Prevented . | . . . Parts Restored . | . . . Kills | -11 -10 -9 ------- Run | Yrd Mat Mat Combat Hostiles Destroyed 30 | . 13 17 Guns 25 | . 13 12 Cannons 5 | . . 5 Classes Destroyed 9 | . 7 2 Worker 4 | . 1 3 Builder 2 | . 2 . Hauler 1 | . . 1 Recycler 4 | . 3 1 Operator 1 | . 1 . Watcher 1 | . 1 . Swarmer 13 | . 3 10 Grunt 13 | . 10 3 Sentry 4 | . . 4 Best Kill Streak 7 | . 5 7 Combat Bots Only 6 | . 3 6 Max Kills in Single Turn 2 | . 2 1 Gunslinging . | . . . Exploded . | . . . Melee . | . . . Uniques/NPCs Destroyed . | . . . Combat | -11 -10 -9 -------- Run | Yrd Mat Mat Hostile Shots Fired 310 | . 120 190 Missed 78 | . 34 44 Hits 232 | . 86 146 Projectile 232 | . 86 146 Critical Strikes 4 | . . 4 Damage Taken 2423 | . 927 1496 Core 619 | . 218 401 Absorbed by Shields . | . . . Core Remaining (%) 56 | 100 12 . Volleys Fired 165 | . 86 79 Largest 2 | . 2 2 Hottest 100 | . 40 100 Shots Fired 301 | . 160 141 Gun 263 | . 160 103 Cannon 38 | . . 38 Launcher . | . . . Special . | . . . Kinetic 233 | . 160 73 Thermal 68 | . . 68 Explosive . | . . . Electromagnetic . | . . . Robot Hit Streak 15 | . 10 15 Robot Miss Streak 5 | . 5 5 Penetration Max . | . . . Secondary Targets 3 | . 2 1 Max Gunslinging Chain 1 | . 1 1 Shots Hit Robots 198 | . 100 98 Core Hits 74 | . 39 35 Critical Kills . | . . . Critical Parts Destroyed 1 | . 1 . Critical Strikes 2 | . 1 1 Burn 1 | . . 1 Destroy 1 | . 1 . Melee Attacks . | . . . Impact . | . . . Slashing . | . . . Piercing . | . . . Sneak Attacks . | . . . Combat Hostiles . | . . . Follow-up Attacks . | . . . Damage Inflicted 2359 | . 1062 1297 Guns 1947 | . 1054 893 Cannons 404 | . . 404 Explosions . | . . . Melee . | . . . Ramming 8 | . 8 . Kinetic 1665 | . 1054 611 Thermal 686 | . . 686 Explosive . | . . . Electromagnetic . | . . . Impact . | . . . Slashing . | . . . Piercing . | . . . Highest Corruption . | . . . Average Corruption . | . . . Corruption Purged . | . . . Corruption Blocked . | . . . Overload Shots . | . . . Overflow Damage 4 | . . 4 Projectiles 4 | . . 4 Explosions . | . . . Melee . | . . . Knockbacks . | . . . Impact . | . . . Kinetic . | . . . Secondary . | . . . Self-Inflicted Damage 4 | . 4 . Shots . | . . . Rammed 1 | . 1 . Targets Rammed 1 | . 1 . Kicked . | . . . Crushed . | . . . Highest Temperature 139 | . 22 139 Average Temperature 41 | . 9 47 Received Heat Transfer 723 | . 393 330 Siege Activations . | . . . Martial Activations . | . . . Shielding Activations . | . . . Robots Disrupted . | . . . Combat Hostiles . | . . . Robots Corrupted . | . . . Combat Hostiles . | . . . Parts Fried . | . . . Impact Corruptions . | . . . Robots Melted . | . . . Combat Hostiles . | . . . Parts Melted 3 | . . 3 Heat Transferred 1608 | . . 1608 Parts Sabotaged . | . . . Parts Stolen . | . . . Parts Stripped . | . . . Power Chain Reactions . | . . . Alert | -11 -10 -9 ------- Run | Yrd Mat Mat Maximum Alert Level . | . . . Low Security (%) 100 | 100 100 100 Level 1 . | . . . Level 2 . | . . . Level 3 . | . . . Level 4 . | . . . Level 5 . | . . . High Security . | . . . Max Security . | . . . Peak Influence 139 | . 135 139 Initial 33 | . . 33 Average 48 | . 65 36 Influence Increases 885 | . 437 448 Destroy 0b10 Robot/C 600 | . 260 340 Destroy 0b10 Robot/NC 65 | . 40 25 Destroy Leader 144 | . 62 82 Destroy Structure 1 | . . 1 Lose Combat Pursuer 75 | . 75 . Influence Decreases 804 | . 356 448 Entered New Map 48 | . . 48 Time Decay 557 | . 286 271 Lost Part 199 | . 70 129 Squads Dispatched 5 | . 5 . Investigation 2 | . 2 . Extermination . | . . . Reinforcement 3 | . 3 . Assault . | . . . Garrison . | . . . Intercept . | . . . Searches Triggered . | . . . Construction Impeded . | . . . Haulers Reinforced . | . . . Active Scanning Responses . | . . . Cargo Convoy Interrupts . | . . . Stealth | -11 -10 -9 --------- Run | Yrd Mat Mat Distress Signals 6 | . 2 4 Communications Jammed . | . . . Distress Signals . | . . . Times Spotted 45 | . 20 25 Peak Tracking Total 8 | . 5 8 Tactical Retreats 7 | . 3 4 ECM-based Alert Blocks 5 | . . 5 Traps | -11 -10 -9 ------- Run | Yrd Mat Mat Traps Triggered 2 | . 2 . Indirectly . | . . . Trap Hack Attempts . | . . . Triggered . | . . . Disarmed . | . . . Reprogrammed . | . . . Reused . | . . . Traps Extracted . | . . . Installed . | . . . Triggered . | . . . Machines | -11 -10 -9 ---------- Run | Yrd Mat Mat Machines Disabled . | . . . Max in Single Turn . | . . . Machines Repaired . | . . . Machines Dismantled . | . . . Machines Sabotaged . | . . . Overloaded Fab Kills . | . . . Hacking | -11 -10 -9 --------- Run | Yrd Mat Mat Machines Accessed 1 | . 1 . Terminals 1 | . 1 . Fabricators . | . . . Repair Stations . | . . . Recycling Units . | . . . Scanalyzers . | . . . Garrison Access . | . . . Total Hacks 2 | . 2 . Successful 1 | . 1 . Failed 1 | . 1 . Catastrophic . | . . . Database Lockouts . | . . . Manual 2 | . 2 . Terminals 2 | . 2 . Fabricators . | . . . Repair Stations . | . . . Recycling Units . | . . . Scanalyzers . | . . . Garrison Access . | . . . Terminal Hacks 1 | . 1 . Recall Reinforcements 1 | . 1 . Fabricator Hacks . | . . . Repair Station Hacks . | . . . Recycling Unit Hacks . | . . . Scanalyzer . | . . . Garrison Access Hacks . | . . . Unauthorized Hacks . | . . . Terminals . | . . . Fabricators . | . . . Repair Stations . | . . . Recycling Units . | . . . Scanalyzers . | . . . Garrison Access . | . . . Data Cores Recovered . | . . . Used . | . . . Hacking Detections 1 | . 1 . Full Trace Events . | . . . Feedback Events . | . . . Feedback Blocked . | . . . Robot Schematics Acquired . | . . . Robots Built . | . . . Authchips . | . . . Time . | . . . Total Robot Build Rating . | . . . Part Schematics Acquired . | . . . Parts Built . | . . . Authchips . | . . . Time . | . . . Total Part Build Rating . | . . . Part Studies Acquired . | . . . Parts Repaired . | . . . Time . | . . . Parts Recycled . | . . . Recycled Matter . | . . . Retrieved Matter . | . . . Retrieved Components . | . . . Parts Scanalyzed . | . . . Part Schematics Acquired . | . . . Parts Damaged . | . . . Bothacking | -11 -10 -9 ------------ Run | Yrd Mat Mat Used RIF Installer . | . . . Robots Hacked . | . . . Non-combat . | . . . Combat . | . . . Robot Hacks Applied . | . . . Relay Couplers Released . | . . . Fabnet Peak Effective % . | . . . Robots Rewired . | . . . Allies Hacked . | . . . Hacks Repelled . | . . . Allies | -11 -10 -9 -------- Run | Yrd Mat Mat Total Allies . | . . . Largest Group . | . . . Highest-Rated Group . | . . . Highest-Rated Ally . | . . . Total Orders . | . . . Ally Attacks . | . . . Total Damage . | . . . Kills . | . . . Allies Corrupted . | . . . Allies Melted . | . . . Intel | -11 -10 -9 ------- Run | Yrd Mat Mat Active Infowar (turns) 729 | . 61 668 ECM 729 | . 61 668 Robot Analysis Total . | . . . Derelict Logs Recovered . | . . . Drone Launches . | . . . Drone Recoveries . | . . . Exploration | -11 -10 -9 ------------- Run | Yrd Mat Mat Turns Passed 1707 | 53 806 848 Spaces Moved 799 | 45 457 297 Core 14 | 7 1 6 Treads . | . . . Legs 28 | . 28 . Wheels 757 | 38 428 291 Hover . | . . . Flight . | . . . Fastest Speed 50 | 50 90 105 Average Speed 120 | 81 116 133 Slowest Speed 850 | 90 800 850 Overloaded Moves . | . . . Propulsion Burnouts . | . . . Robots Hopped . | . . . Potential Cave-ins . | . . . Cave-ins Triggered . | . . . Exploration Rate (%) 32 | 3 63 30 Regions Visited 2 Branch Regions . Pre-discovered Areas . | . . . Known Exits Taken . | . . . Unknown Exits Taken 2 | 1 1 . Scrap Searched . | . . . Spaces Dug . | . . . Terrain Destroyed . | . . . Melee . | . . . Projectile . | . . . AOE . | . . . Terrain Rammed . | . . . Walls Destroyed . | . . . Machines Disabled . | . . . Actions | -11 -10 -9 --------- Run | Yrd Mat Mat Total 1262 | 61 586 615 Wait 220 | 3 11 206 Move 797 | 44 456 297 Hop . | . . . Pick Up 38 | 8 16 14 Fast Attach . | . . . Attach 32 | 6 9 17 Detach . | . . . Swap 6 | . 4 2 Drop 3 | . 3 . Fire 165 | . 86 79 Melee . | . . . Ram 1 | . 1 . Kick . | . . . Crush . | . . . Escape Stasis . | . . . Rewire . | . . . Trap . | . . . Miscellaneous . | . . . Route ------- -11/Scrapyard -10/Materials (discovered 2 exits: [*Mat] / [*Min]) -9/Materials History --------- Turn | Location | Event 5 | -11/Scrapyard | Discovered new exit (range 16) 54 | -11/Scrapyard | Entered Materials 112 | -10/Materials | Discovered new exit (range 5) 302 | -10/Materials | Build established: Mutant 495 | -10/Materials | Core integrity fell below 50% 586 | -10/Materials | Lost 5 parts (2p1n2w) 810 | -10/Materials | Discovered new exit (range 16) 846 | -10/Materials | Core integrity fell below 20% 860 | -10/Materials | Entered another Materials area 860 | -9/Materials | Evolved 2 slots: Utility x2 877 | -9/Materials | Build established: Scavenger-Mutant 1051 | -9/Materials | Lost 3 parts (1n2w) 1471 | -9/Materials | Core integrity fell below 50% 1494 | -9/Materials | Build established: Mutant 1505 | -9/Materials | Core integrity fell below 20% 1529 | -9/Materials | Lost 9 parts (2p3n1u3w) 1708 | -9/Materials | Destroyed by Y-45 Defender with Beam Rifle Last Messages --------------- R-06 Scavenger collects Lgt. Ion Engine. K-01 Serf collects debris. R-06 Scavenger collects Lgt. Assault Rifle. K-01 Serf collects debris. R-06 Scavenger collects Lgt. Treads. K-01 Serf collects debris. K-01 Serf destroyed. Acquired 48 matter. K-01 Serf collects debris. Acquired Wheel. K-01 Serf collects debris. Acquired Wheel. K-01 Serf collects debris. Acquired Lgt. Armor Plating. Acquired 24 matter. R-06 Scavenger collects Lgt. Assault Rifle. Acquired Ion Engine. Acquired 73 matter. R-06 Scavenger collects Sml. Matter Pod. Acquired 5 matter. Map ----- +----------------------------------------------------+ | ??????# #????# #???# #???????????????????? | | ??????# ###### ##### #???????????????????? | | ??????# + #???????????????????? | | ??????#####+##### #???????????????????? | | ######### ### *!#???????????????????? | | * %! %#???????????????????? | | %! ############## #???????????????????? | | [ #????????????#=#????????????????#??? | | ####### #????????????#%#??????????????? #??? | | #?????#######??????????###+#######????????? #### | | #??????????????????????# %[= #######?? | | #??????????????????????# # ==!#?? ? | | #??????????????????????# #![%==#? ?? | | #??????????????????????# """ """ +[ =%#? ##?? | | #??????????????????????# """ """ # =" %# [### | | ##########?????????????# """ """ # !"" #% | | # #?????????????# """ """ # """%+% T | | # """" #?????????????# # "" #= | | # """" #?????????#########+##### """*# ### | | # """" #?????????# # / """ #? ##?? | | + #?????????# # #### """ #? #??? | | # #?????????# "" # #??# " #?? #??? | | # "T" #?????????# T" + #??# #?? #??? | | # """ #?????????# "" # #??##+####??? #??? | | # #?????????# # #???# #?????? ??? | | ##########?????????####@### #???# #??????? #?? | | #?????????????????????#Y#?# ? ?????? #?? | | #?????????????????????# #?# ?????#?? | | #?????????????????????# #?# ?????? | | #?????????????????????# #?####+## ???? | | #?????????????????????# #??? ??# #?? | | #?????????????????????# #?? ???# ? | | #?????????????????????# #? ????# | | ###????????????????????? # ?????# | | ???????????????????????? +??????# | | ???????????????????????? ???????# ? | | ???????????????????????? ???????# / ? | | ???????????????????????? ???????# ??? | | ???????????????????????? ???????# ????? | | ???????????????????????? ???????# " "???????? | | ???????????????????????? ???????? "??????????? | | ???????????????????????? ??????????????????????? | | ???????????????????????? ??????????????????????? | | ?????????????????????????????????????????????????? | | ?????????????????????????????????????????????????? | | ?????????????????????????????????????????????????? | | ?????????????????????????????????????????????????? | | ?????????????????????????????????????????????????? | | ?????????????????????????????????????????????????? | | ?????????????????????????????????????????????????? | +----------------------------------------------------+ Best States ------------- Heat Dissipation 28 Energy Generation 14 Energy Capacity 250 Matter Stores 300 Matter Capacity 300 Sight Range 16 Terrain Scan Density 10 ECM Strength 1 Armor Coverage 150 Evasion (%) 42 Item Schematics ----------------- None Robot Schematics ------------------ None Fabricated ------------ Nothing Repaired ---------- Nothing Studied --------- None Alien Tech Used ----------------- None Achievements -------------- None Challenges ------------ None Game ------ Seed DerelictCooledReplica Manual? 0 Play Time 00:16:48 Cumulative 17.4 hours Start 2026.01.06 @ 12:23:40 End 2026.01.06 @ 12:38:10 Sessions 1 Manual Loads 0 Difficulty Rogue Special Mode None Game No. 52 Rogue 51 Adventurer 0 Explorer 1 Win Type - Total 0 Types 0/0/0/0/0/0/0/0/0/0 Lore% 8 Gallery% 17 Achievement% 13 Wizard Run 0 Options --------- Layout 1 ASCII 0 Keyboard 0 Movement Mouse Keybinds 0 Fullscreen 2 Font 24/Smallcaps Map View 50x35 Zoom Use 0% Tactical HUD 0 Map Filters NONE Filters NONE Steam 1 RUN: dfc77718-602c-4706-92bc-9944a2b55812